fUST/lending_fUST_20250514
["ID","MTS","AMOUNT","RATE_DAILY","PERIOD"]
[360995925,1747188635662,-400.0,0.00013698,2]
[360995926,1747188635672,-503.7406646,0.00013698,2]
[360995927,1747188635682,-400.0,0.00013698,2]
[360995928,1747188635692,-503.86364046,0.00013698,2]
[360995929,1747188635701,-400.0,0.00013698,2]
[360995930,1747188635711,-400.0,0.00013698,2]
[360995931,1747188635720,-400.91181478,0.00013698,2]
[360995932,1747188635730,-507.64735215,0.00013698,2]
[360995933,1747188635740,-634.45,0.00013698,2]
[360995934,1747188635750,-401.21340451,0.00013698,2]
[360995935,1747188635760,-405.96612229,0.00013698,2]
[360995936,1747188635770,-405.98927948,0.00013698,2]
[360995937,1747188635779,-400.0,0.00013698,2]
[360995938,1747188635793,-504.96067291,0.00013698,2]
[360995939,1747188635802,-402.08586404,0.00013698,2]
[360995940,1747188635812,-400.0,0.00013698,2]
[360995941,1747188635822,-502.03070403,0.00013698,2]
[360995942,1747188635832,-405.71818229,0.00013698,2]
[360995943,1747188635842,-402.23408768,0.00013698,2]
[360995944,1747188635852,-410.25205622,0.00013698,2]
[360995945,1747188635861,-533.45758306,0.00013698,2]
[360995946,1747188635871,-400.0,0.00013698,2]
[360995947,1747188635881,-502.78475951,0.00013698,2]
[360995948,1747188635891,-404.27124873,0.00013698,2]
[360995949,1747188635901,-400.0,0.00013698,2]
[360995950,1747188635910,-417.03950978,0.00013698,2]
[360995951,1747188635919,-402.83763054,0.00013698,2]
[360995952,1747188635929,-400.0,0.00013698,2]
[360995953,1747188635938,-400.0,0.00013698,2]
[360995954,1747188635947,-501.6214241,0.00013698,2]
[360995955,1747188635957,-401.97734817,0.00013698,2]
[360995956,1747188635967,-378.52012293,0.00013698,2]
[360995957,1747188635977,-404.56639984,0.00013698,2]
[360995958,1747188635986,-503.44731209,0.00013698,2]
[360995959,1747188635995,-400.0,0.00013698,2]
[360995960,1747188636006,-400.0,0.00013698,2]
[360995961,1747188636015,-584.31,0.00013698,2]
[360995962,1747188636025,-400.0,0.00013698,2]
[360995963,1747188636037,-501.90852557,0.00013698,2]
[360995964,1747188636046,-405.20917631,0.00013698,2]
[360995965,1747188636055,-204.81480309,0.00013698,2]
[360995966,1747188636065,-400.0,0.00013698,2]
[360995967,1747188636075,-403.32696715,0.00013698,2]
[360995968,1747188636085,-400.0,0.00013698,2]
[360995969,1747188636094,-400.0,0.00013698,2]
[360995970,1747188636104,-400.0,0.00013698,2]
[360995971,1747188636113,-410.08274062,0.00013698,2]
[360995972,1747188636123,-404.2125661,0.00013698,2]
[360995973,1747188636132,-401.4292162,0.00013698,2]
[360995974,1747188636141,-400.0,0.00013698,2]
[360995975,1747188636152,-400.0,0.00013698,2]
[360995976,1747188636162,-400.0,0.00013698,2]
[360995977,1747188636175,-406.10110978,0.00013698,2]
[360995978,1747188636185,-400.0,0.00013698,2]
[360995979,1747188636195,-503.89464502,0.00013698,2]
[360995980,1747188636204,-400.0,0.00013698,2]
[360995981,1747188636214,-502.93544939,0.00013698,2]
[360995982,1747188636225,-407.70490336,0.00013698,2]
[360995983,1747188636234,-400.0,0.00013698,2]
[360995984,1747188636244,-349.79010808,0.00013698,2]
[360995985,1747188636255,-400.0,0.00013698,2]
[360995986,1747188636264,-1080.95,0.00013698,2]
[360995987,1747188636274,-506.93589186,0.00013698,2]
[360995988,1747188636283,-400.0,0.00013698,2]
[360995989,1747188636295,-401.04230148,0.00013698,2]
[360995990,1747188636304,-400.0,0.00013698,2]
[360995991,1747188636314,-400.0,0.00013698,2]
[360995992,1747188636323,-406.14166451,0.00013698,2]
[360995993,1747188636333,-400.0,0.00013698,2]
[360995994,1747188636343,-407.37554784,0.00013698,2]
[360995995,1747188636353,-512.0418579,0.00013698,2]
[360995996,1747188636362,-400.0,0.00013698,2]
[360995997,1747188636372,-381.4636265,0.00013698,2]
[360995998,1747188636381,-400.0,0.00013698,2]
[360995999,1747188636390,-403.42396584,0.00013698,2]
[360996000,1747188636400,-400.0,0.00013698,2]
[360996001,1747188636410,-505.20190446,0.00013698,2]
[360996002,1747188636420,-168.33012,0.00013698,2]
[360996003,1747188636430,-505.43588226,0.00013698,2]
[360996004,1747188636440,-400.5940163,0.00013698,2]
[360996005,1747188636451,-1463.11,0.00013698,2]
[360996006,1747188636460,-400.55477828,0.00013698,2]
[360996007,1747188636470,-168.33012,0.00013698,2]
[360996008,1747188636480,-514.59795631,0.00013698,2]
[360996009,1747188636489,-400.0,0.00013698,2]
[360996010,1747188636499,-526.04520824,0.00013698,2]
[360996011,1747188636509,-402.19344007,0.00013698,2]
[360996012,1747188636519,-400.54303535,0.00013698,2]
[360996013,1747188636529,-400.0,0.00013698,2]
[360996014,1747188636541,-400.0,0.00013698,2]
[360996015,1747188636552,-406.71112971,0.00013698,2]
[360996016,1747188636562,-401.19129405,0.00013698,2]
[360996017,1747188636572,-502.26592244,0.00013698,2]
[360996018,1747188636582,-400.0,0.00013698,2]
[360996019,1747188636592,-402.19248364,0.00013698,2]
[360996020,1747188636602,-401.14692678,0.00013698,2]
[360996021,1747188636612,-400.87603393,0.00013698,2]
[360996022,1747188636621,-405.40777478,0.00013698,2]
[360996023,1747188636631,-504.6429412,0.00013698,2]
[360996024,1747188636641,-401.00535458,0.00013698,2]
[360996025,1747188636651,-400.0,0.00013698,2]
[360996026,1747188636661,-401.58759882,0.00013698,2]
[360996027,1747188636670,-400.0,0.00013698,2]
[360996028,1747188636680,-404.33510022,0.00013698,2]
[360996029,1747188636690,-400.72757339,0.00013698,2]
[360996030,1747188636699,-406.18309826,0.00013698,2]
[360996031,1747188636709,-400.0,0.00013698,2]
[360996032,1747188636719,-400.0,0.00013698,2]
[360996033,1747188636728,-400.0,0.00013698,2]
[360996034,1747188636738,-503.5223465,0.00013698,2]
[360996035,1747188636748,-404.76875752,0.00013698,2]
[360996036,1747188636757,-406.57245051,0.00013698,2]
[360996037,1747188636767,-400.0,0.00013698,2]
[360996038,1747188636776,-400.0,0.00013698,2]
[360996039,1747188636787,-430.9918453,0.00013698,2]
[360996040,1747188636797,-1250.31,0.00013698,2]
[360996041,1747188636807,-400.0,0.00013698,2]
[360996042,1747188636817,-400.0,0.00013698,2]
[360996043,1747188636827,-401.34396395,0.00013698,2]
[360996044,1747188636838,-400.0,0.00013698,2]
[360996045,1747188636848,-400.0,0.00013698,2]
[360996046,1747188636857,-406.37830543,0.00013698,2]
[360996047,1747188636867,-406.79990231,0.00013698,2]
[360996048,1747188636877,-400.0,0.00013698,2]
[360996049,1747188636886,-400.0,0.00013698,2]
[360996050,1747188636896,-400.64519663,0.00013698,2]
[360996051,1747188636906,-400.0,0.00013698,2]
[360996052,1747188636916,-400.41339258,0.00013698,2]
[360996053,1747188636925,-400.0,0.00013698,2]
[360996054,1747188636934,-400.0,0.00013698,2]
[360996055,1747188636944,-402.7846486,0.00013698,2]
[360996056,1747188636953,-400.0,0.00013698,2]
[360996057,1747188636963,-400.0,0.00013698,2]
[360996058,1747188636972,-405.09820044,0.00013698,2]
[360996059,1747188636982,-400.0,0.00013698,2]
[360996060,1747188636992,-400.0,0.00013698,2]
[360996061,1747188637002,-402.31976161,0.00013698,2]
[360996062,1747188637012,-400.0,0.00013698,2]
[360996063,1747188637021,-400.0,0.00013698,2]
[360996064,1747188637031,-513.06317174,0.00013698,2]
[360996065,1747188637044,-409.19619208,0.00013698,2]
[360996066,1747188637053,-400.0,0.00013698,2]
[360996067,1747188637063,-407.4808535,0.00013698,2]
[360996068,1747188637072,-400.85672942,0.00013698,2]
[360996069,1747188637081,-403.30911903,0.00013698,2]
[360996070,1747188637090,-402.12071114,0.00013698,2]
[360996071,1747188637100,-405.05655171,0.00013698,2]
[360996072,1747188637109,-516.94,0.00013698,2]
[360996073,1747188637119,-402.04926596,0.00013698,2]
[360996074,1747188637128,-400.0,0.00013698,2]
[360996075,1747188637138,-400.0,0.00013698,2]
[360996076,1747188637148,-400.0,0.00013698,2]
[360996077,1747188637158,-400.0,0.00013698,2]
[360996078,1747188637169,-400.98200819,0.00013698,2]
[360996079,1747188637183,-432.55435517,0.00013698,2]
[360996080,1747188637194,-400.0,0.00013698,2]
[360996081,1747188637206,-403.71158291,0.00013698,2]
[360996082,1747188637216,-401.6777489,0.00013698,2]
[360996083,1747188637227,-401.56719392,0.00013698,2]
[360996084,1747188637237,-404.64056196,0.00013698,2]
[360996085,1747188637248,-402.77011724,0.00013698,2]
[360996086,1747188637258,-503.66294754,0.00013698,2]
[360996087,1747188637269,-400.0,0.00013698,2]
[360996088,1747188637279,-400.0,0.00013698,2]
[360996089,1747188637293,-401.39370267,0.00013698,2]
[360996090,1747188637303,-404.50869962,0.00013698,2]
[360996091,1747188637312,-300.0,0.00013698,2]
[360996092,1747188637324,-401.76532786,0.00013698,2]
[360996093,1747188637334,-400.0,0.00013698,2]
[360996094,1747188637344,-517.1086056,0.00013698,2]
[360996095,1747188637354,-405.58907052,0.00013698,2]
[360996096,1747188637363,-1255.388467,0.00013698,2]
[360996097,1747188637373,-619.84876368,0.00013698,2]
[360996098,1747188637384,-400.0,0.00013698,2]
[360996099,1747188637394,-1255.388467,0.00013698,2]
[360996100,1747188637404,-503.56888804,0.00013698,2]
[360996101,1747188637414,-400.0,0.00013698,2]
[360996102,1747188637423,-1255.388467,0.00013698,2]
[360996103,1747188637434,-1255.388467,0.00013698,2]
[360996104,1747188637444,-400.0,0.00013698,2]
[360996105,1747188637454,-400.0,0.00013698,2]
[360996106,1747188637464,-404.21929687,0.00013698,2]
[360996107,1747188637475,-400.0,0.00013698,2]
[360996108,1747188637484,-401.06641773,0.00013698,2]
[360996109,1747188637495,-400.0,0.00013698,2]
[360996110,1747188637504,-400.0,0.00013698,2]
[360996111,1747188637515,-400.0,0.00013698,2]
[360996112,1747188637524,-400.0,0.00013698,2]
[360996113,1747188637536,-401.4566944,0.00013698,2]
[360996114,1747188637546,-400.0,0.00013698,2]
[360996115,1747188637556,-400.0,0.00013698,2]
[360996116,1747188637566,-400.0,0.00013698,2]
[360996117,1747188637576,-401.21707502,0.00013698,2]
[360996118,1747188637586,-403.53163204,0.00013698,2]
[360996119,1747188637596,-400.0,0.00013698,2]
[360996120,1747188637606,-400.0,0.00013698,2]
[360996121,1747188637617,-400.0,0.00013698,2]
[360996122,1747188637627,-165.179887,0.00013698,2]
[360996123,1747188637638,-165.179887,0.00013698,2]
[360996125,1747188637648,-165.179887,0.00013698,2]
[360996126,1747188637659,-165.179887,0.00013698,2]
[360996127,1747188637669,-400.0,0.00013698,2]
[360996128,1747188637678,-400.0,0.00013698,2]
[360996129,1747188637688,-400.0,0.00013698,2]
[360996131,1747188637698,-400.0,0.00013698,2]
[360996132,1747188637707,-165.179887,0.00013698,2]
[360996133,1747188637717,-165.179887,0.00013698,2]
[360996134,1747188637727,-165.179887,0.00013698,2]
[360996135,1747188637737,-165.179887,0.00013698,2]
[360996136,1747188637747,-400.0,0.00013698,2]
[360996140,1747188637758,-400.0,0.00013698,2]
[360996141,1747188637767,-512.01925747,0.00013698,2]
[360996142,1747188637777,-400.0,0.00013698,2]
[360996143,1747188637790,-400.0,0.00013698,2]
[360996144,1747188637801,-400.0,0.00013698,2]
[360996146,1747188637811,-400.0,0.00013698,2]
[360996148,1747188637820,-500.92423279,0.00013698,2]
[360996150,1747188637830,-502.91290547,0.00013698,2]
[360996152,1747188637840,-400.0,0.00013698,2]
[360996154,1747188637850,-400.0,0.00013698,2]
[360996156,1747188637860,-160.703935,0.00013698,2]
[360996158,1747188637870,-400.0,0.00013698,2]
[360996160,1747188637880,-400.0,0.00013698,2]
[360996162,1747188637890,-400.0,0.00013698,2]
[360996164,1747188637900,-400.0,0.00013698,2]
[360996166,1747188637909,-400.0,0.00013698,2]
[360996168,1747188637919,-402.4702996,0.00013698,2]
[360996170,1747188637929,-406.31694191,0.00013698,2]
[360996172,1747188637939,-440.33264307,0.00013698,2]
[360996174,1747188637948,-400.0,0.00013698,2]
[360996176,1747188637959,-402.87981588,0.00013698,2]
[360996178,1747188637968,-507.59741675,0.00013698,2]
[360996180,1747188637979,-400.0,0.00013698,2]
[360996182,1747188637988,-1181.47,0.00013698,2]
[360996184,1747188637998,-402.12686403,0.00013698,2]
[360996186,1747188638008,-430.87314378,0.00013698,2]
[360996188,1747188638019,-301.21833244,0.00013698,2]
[360996190,1747188638030,-427.02493544,0.00013698,2]
[360996192,1747188638043,-400.0,0.00013698,2]
[360996194,1747188638053,-503.28580049,0.00013698,2]
[360996196,1747188638063,-502.92627176,0.00013698,2]
[360996198,1747188638073,-403.40017062,0.00013698,2]
[360996200,1747188638083,-400.0,0.00013698,2]
[360996202,1747188638092,-404.7818439,0.00013698,2]
[360996204,1747188638103,-400.0,0.00013698,2]
[360996206,1747188638112,-503.91003684,0.00013698,2]
[360996208,1747188638121,-508.52002369,0.00013698,2]
[360996210,1747188638132,-400.51380561,0.00013698,2]
[360996212,1747188638141,-400.0,0.00013698,2]
[360996214,1747188638151,-401.75710196,0.00013698,2]
[360996216,1747188638165,-400.85155173,0.00013698,2]
[360996218,1747188638175,-400.0,0.00013698,2]
[360996220,1747188638185,-412.09728137,0.00013698,2]
[360996222,1747188638195,-400.0,0.00013698,2]
[360996224,1747188638207,-401.32290506,0.00013698,2]
[360996226,1747188638216,-404.12689371,0.00013698,2]
[360996228,1747188638226,-400.0,0.00013698,2]
[360996230,1747188638236,-400.0,0.00013698,2]
[360996232,1747188638246,-403.86085673,0.00013698,2]
[360996234,1747188638256,-501.40720398,0.00013698,2]
[360996236,1747188638266,-400.0,0.00013698,2]
[360996238,1747188638276,-402.29408786,0.00013698,2]
[360996240,1747188638289,-400.0,0.00013698,2]
[360996242,1747188638299,-227.29200994,0.00013698,2]
[360996244,1747188638309,-402.31290269,0.00013698,2]
[360996246,1747188638319,-502.43827414,0.00013698,2]
[360996248,1747188638329,-400.0,0.00013698,2]
[360996250,1747188638339,-400.0,0.00013698,2]
[360996252,1747188638349,-502.89974966,0.00013698,2]
[360996254,1747188638358,-400.0,0.00013698,2]
[360996256,1747188638368,-404.90374979,0.00013698,2]
[360996259,1747188638378,-508.88095846,0.00013698,2]
[360996261,1747188638388,-401.81615119,0.00013698,2]
[360996263,1747188638398,-400.0,0.00013698,2]
[360996265,1747188638408,-400.0,0.00013698,2]
[360996267,1747188638417,-405.07753344,0.00013698,2]
[360996269,1747188638427,-400.0,0.00013698,2]
[360996270,1747188638437,-400.0,0.00013698,2]
[360996272,1747188638447,-400.0,0.00013698,2]
[360996274,1747188638457,-500.0,0.00013698,2]
[360996276,1747188638466,-500.0,0.00013698,2]
[360996278,1747188638475,-500.0,0.00013698,2]
[360996280,1747188638485,-500.0,0.00013698,2]
[360996282,1747188638494,-500.0,0.00013698,2]
[360996284,1747188638504,-500.0,0.00013698,2]
[360996286,1747188638514,-500.0,0.00013698,2]
[360996288,1747188638523,-500.0,0.00013698,2]
[360996290,1747188638533,-521.06063283,0.00013698,2]
[360996292,1747188638547,-500.0,0.00013698,2]
[360996294,1747188638556,-504.95529508,0.00013698,2]
[360996296,1747188638566,-402.6229265,0.00013698,2]
[360996298,1747188638576,-507.64731615,0.00013698,2]
[360996300,1747188638586,-400.0,0.00013698,2]
[360996302,1747188638596,-400.0,0.00013698,2]
[360996304,1747188638606,-400.0,0.00013698,2]
[360996306,1747188638615,-400.71857246,0.00013698,2]
[360996308,1747188638625,-507.93240176,0.00013698,2]
[360996310,1747188638634,-601.61,0.00013698,2]
[360996312,1747188638643,-423.54420047,0.00013698,2]
[360996314,1747188638652,-151.0,0.00013698,2]
[360996316,1747188638662,-515.38797851,0.00013698,2]
[360996318,1747188638672,-151.0,0.00013698,2]
[360996320,1747188638682,-400.0,0.00013698,2]
[360996322,1747188638692,-151.0,0.00013698,2]
[360996324,1747188638701,-151.0,0.00013698,2]
[360996326,1747188638712,-151.0,0.00013698,2]
[360996328,1747188638722,-151.0,0.00013698,2]
[360996331,1747188638731,-400.0,0.00013698,2]
[360996333,1747188638741,-151.0,0.00013698,2]
[360996335,1747188638750,-151.0,0.00013698,2]
[360996337,1747188638759,-400.0,0.00013698,2]
[360996339,1747188638769,-279.144495,0.00013698,2]
[360996341,1747188638779,-500.0,0.00013698,2]
[360996343,1747188638792,-3077.23,0.00013698,2]
[360996345,1747188638802,-400.0,0.00013698,2]
[360996347,1747188638812,-400.0,0.00013698,2]
[360996349,1747188638822,-401.26142867,0.00013698,2]
[360996351,1747188638832,-419.5217838,0.00013698,2]
[360996353,1747188638842,-401.4194902,0.00013698,2]
[360996355,1747188638852,-400.0,0.00013698,2]
[360996357,1747188638861,-156.61753066,0.00013698,2]
[360996359,1747188638871,-621.180374,0.00013699,2]
[360996361,1747188638881,-1083.53,0.000138,2]
[360996363,1747188638890,-165.179887,0.000138,2]
[360996365,1747188638899,-165.179887,0.000138,2]
[360996367,1747188638909,-500.0,0.00013914,2]
[360996369,1747188638918,-500.0,0.00013914,2]
[360996371,1747188638927,-500.0,0.00013934,2]
[360996373,1747188638937,-500.0,0.00013971,2]
[360996375,1747188638946,-400.0,0.00013972,2]
[360996377,1747188638956,-400.0,0.00013972,2]
[360996379,1747188638966,-400.0,0.00013972,2]
[360996381,1747188638975,-536.32249614,0.00013972,2]
[360996383,1747188638984,-525.98859134,0.00013972,2]
[360996385,1747188638994,-400.0,0.00013972,2]
[360996387,1747188639003,-400.0,0.00013972,2]
[360996389,1747188639013,-400.0,0.00013972,2]
[360996391,1747188639022,-178.08924925,0.00013972,2]
[360996393,1747188639032,-504.79112613,0.00013972,2]
[360996395,1747188639044,-277.56457442,0.00013972,2]
[360996397,1747188639054,-400.0,0.00013972,2]
[360996399,1747188639064,-231.35717737,0.00013972,2]
[360996401,1747188639073,-246.096751,0.00013972,2]
[360996403,1747188639083,-400.0,0.00013972,2]
[360996405,1747188639093,-400.0,0.00013972,2]
[360996424,1747188639263,-151.0,0.00013972,2]
[360996426,1747188639274,-493.21,0.00013972,2]
[360996428,1747188639283,-320.15386384,0.00013972,2]
[360996430,1747188639296,-400.0,0.00013972,2]
[360996432,1747188639308,-400.0,0.00013972,2]
[360996434,1747188639318,-400.0,0.00013972,2]
[360996436,1747188639328,-232.34770132,0.00013972,2]
[360996438,1747188639338,-189.17907964,0.00013972,2]
[360996440,1747188639346,-400.0,0.00013972,2]
[360996442,1747188639355,-400.0,0.00013972,2]
[360996444,1747188639365,-400.0,0.00013972,2]
[360996446,1747188639375,-634.45,0.00013972,2]
[360996448,1747188639384,-404.70729117,0.00013972,2]
[360996450,1747188639393,-467.3,0.00013972,2]
[360996452,1747188639402,-407.37955506,0.00013972,2]
[360996454,1747188639411,-400.0,0.00013972,2]
[360996456,1747188639420,-402.9698364,0.00013972,2]
[360996458,1747188639429,-584.31,0.00013972,2]
[360996459,1747188639438,-404.0581058,0.00013972,2]
[360996461,1747188639447,-402.31964464,0.00013972,2]
[360996463,1747188639456,-404.178776,0.00013972,2]
[360996465,1747188639468,-407.35690305,0.00013972,2]
[360996467,1747188639477,-400.0,0.00013972,2]
[360996469,1747188639486,-400.0,0.00013972,2]
[360996471,1747188639496,-151.0,0.00013972,2]
[360996473,1747188639505,-400.0,0.00013972,2]
[360996475,1747188639515,-1080.95,0.00013972,2]
[360996477,1747188639525,-403.82777627,0.00013972,2]
[360996479,1747188639534,-151.0,0.00013972,2]
[360996481,1747188639546,-400.0,0.00013972,2]
[360996483,1747188639556,-404.98878372,0.00013972,2]
[360996485,1747188639566,-400.0,0.00013972,2]
[360996487,1747188639576,-168.33012,0.00013972,2]
[360996489,1747188639586,-151.0,0.00013972,2]
[360996491,1747188639596,-1463.11,0.00013972,2]
[360996493,1747188639606,-168.33012,0.00013972,2]
[360996495,1747188639615,-151.0,0.00013972,2]
[360996497,1747188639625,-412.97883051,0.00013972,2]
[360996499,1747188639635,-151.0,0.00013972,2]
[360996500,1747188639644,-400.0,0.00013972,2]
[360996501,1747188639653,-405.5795165,0.00013972,2]
[360996503,1747188639662,-403.258723,0.00013972,2]
[360996505,1747188639672,-1250.31,0.00013972,2]
[360996507,1747188639682,-400.0,0.00013972,2]
[360996509,1747188639691,-400.0,0.00013972,2]
[360996511,1747188639701,-517.38,0.00013972,2]
[360996513,1747188639710,-400.0,0.00013972,2]
[360996515,1747188639719,-402.62172163,0.00013972,2]
[360996517,1747188639729,-407.04778621,0.00013972,2]
[360996519,1747188639738,-381.8745333,0.00013972,2]
[360996521,1747188639747,-400.0,0.00013972,2]
[360996523,1747188639757,-404.8694583,0.00013972,2]
[360996525,1747188639766,-418.05232449,0.00013972,2]
[360996527,1747188639776,-400.0,0.00013972,2]
[360996529,1747188639785,-401.84301034,0.00013972,2]
[360996532,1747188639797,-400.0,0.00013972,2]
[360996535,1747188639806,-400.0,0.00013972,2]
[360996538,1747188639815,-418.01100043,0.00013972,2]
[360996541,1747188639826,-1255.388467,0.00013972,2]
[360996543,1747188639835,-427.85918789,0.00013972,2]
[360996545,1747188639844,-1255.388467,0.00013972,2]
[360996548,1747188639854,-404.44760996,0.00013972,2]
[360996551,1747188639863,-400.0,0.00013972,2]
[360996555,1747188639872,-196.10240301,0.00013972,2]
[360996558,1747188639882,-400.0,0.00013972,2]
[360996561,1747188639892,-401.21412784,0.00013972,2]
[360996564,1747188639901,-401.69225196,0.00013972,2]
[360996567,1747188639911,-409.91535759,0.00013972,2]
[360996570,1747188639922,-400.0,0.00013972,2]
[360996573,1747188639933,-165.179887,0.00013972,2]
[360996576,1747188639942,-406.71701557,0.00013972,2]
[360996579,1747188639952,-400.0,0.00013972,2]
[360996582,1747188639962,-165.179887,0.00013972,2]
[360996585,1747188639972,-400.0,0.00013972,2]
[360996587,1747188639981,-404.44754509,0.00013972,2]
[360996589,1747188639991,-407.46488793,0.00013972,2]
[360996592,1747188640001,-405.94356499,0.00013972,2]
[360996595,1747188640011,-400.0,0.00013972,2]
[360996598,1747188640020,-400.0,0.00013972,2]
[360996601,1747188640030,-405.22088534,0.00013972,2]
[360996604,1747188640043,-402.13453323,0.00013972,2]
[360996606,1747188640054,-1181.47,0.00013972,2]
[360996609,1747188640065,-400.0,0.00013972,2]
[360996611,1747188640077,-425.32363928,0.00013972,2]
[360996614,1747188640087,-405.196496,0.00013972,2]
[360996617,1747188640096,-236.38670884,0.00013972,2]
[360996620,1747188640106,-400.0,0.00013972,2]
[360996623,1747188640116,-151.0,0.00013972,2]
[360996628,1747188640127,-400.0,0.00013972,2]
[360996631,1747188640137,-400.0,0.00013972,2]
[360996633,1747188640146,-151.0,0.00013972,2]
[360996636,1747188640156,-401.43512774,0.00013972,2]
[360996639,1747188640166,-224.06307564,0.00013972,2]
[360996642,1747188640178,-400.0,0.00013972,2]
[360996645,1747188640188,-315.37127841,0.00013972,2]
[360996648,1747188640198,-601.61,0.00013972,2]
[360996650,1747188640207,-400.0,0.00013972,2]
[360996653,1747188640218,-151.0,0.00013972,2]
[360996656,1747188640227,-3077.23,0.00013972,2]
[360996658,1747188640237,-247.52,0.00013972,2]
[360996661,1747188640247,-400.0,0.00013972,2]
[360996664,1747188640257,-400.0,0.00013972,2]
[360996667,1747188640267,-362.49,0.00014,2]
[360996670,1747188640276,-1901.18,0.00014,2]
[360996673,1747188640286,-652.68038405,0.00014017,2]
[360996675,1747188640301,-500.0,0.00014058,2]
[360996678,1747188640311,-10377.07522549,0.00014107,2]
[360996680,1747188640320,-151.0,0.00014107,2]
[360996682,1747188640329,-1427.54835569,0.00014166,2]
[360996684,1747188640339,-500.0,0.00014245,2]
[360996686,1747188640349,-400.0,0.00014246,2]
[360996688,1747188640359,-282.63,0.00014246,2]
[360996690,1747188640368,-400.0,0.00014246,2]
[360996693,1747188640377,-400.0,0.00014246,2]
[360996696,1747188640387,-275.60417055,0.00014246,2]
[360996700,1747188640398,-538.34977376,0.00014246,2]
[360996703,1747188640407,-151.0,0.00014246,2]
[360996705,1747188640418,-151.0,0.00014246,2]
[360996707,1747188640428,-214.67357923,0.00014246,2]
[360996710,1747188640437,-151.0,0.00014246,2]
[360996713,1747188640447,-516.19962263,0.00014246,2]
[360996716,1747188640458,-400.0,0.00014246,2]
[360996719,1747188640467,-493.21,0.00014246,2]
[360996722,1747188640477,-400.0,0.00014246,2]
[360996725,1747188640486,-400.0,0.00014246,2]
[360996728,1747188640497,-400.0,0.00014246,2]
[360996731,1747188640505,-372.75443809,0.00014246,2]
[360996734,1747188640515,-212.59628747,0.00014246,2]
[360996737,1747188640524,-277.38692602,0.00014246,2]
[360996740,1747188640534,-634.45,0.00014246,2]
[360996742,1747188640549,-400.0,0.00014246,2]
[360996745,1747188640559,-584.31,0.00014246,2]
[360996749,1747188640570,-400.0,0.00014246,2]
[360996752,1747188640580,-400.0,0.00014246,2]
[360996755,1747188640590,-151.0,0.00014246,2]
[360996757,1747188640600,-400.0,0.00014246,2]
[360996759,1747188640610,-1080.95,0.00014246,2]
[360996761,1747188640619,-263.553021,0.00014246,2]
[360996764,1747188640629,-400.0,0.00014246,2]
[360996766,1747188640638,-400.0,0.00014246,2]
[360996770,1747188640648,-168.33012,0.00014246,2]
[360996773,1747188640658,-1463.11,0.00014246,2]
[360996776,1747188640668,-168.33012,0.00014246,2]
[360996779,1747188640677,-151.473271,0.00014246,2]
[360996783,1747188640687,-1250.31,0.00014246,2]
[360996787,1747188640697,-400.0,0.00014246,2]
[360996790,1747188640707,-410.3272,0.00014246,2]
[360996793,1747188640716,-400.0,0.00014246,2]
[360996796,1747188640726,-400.0,0.00014246,2]
[360996799,1747188640736,-195.95,0.00014246,2]
[360996802,1747188640745,-400.0,0.00014246,2]
[360996805,1747188640755,-1255.388467,0.00014246,2]
[360996808,1747188640765,-1255.388467,0.00014246,2]
[360996811,1747188640774,-400.0,0.00014246,2]
[360996814,1747188640784,-400.0,0.00014246,2]